Departmental Area,Entity,Payment Date,Expense type,Expense Area,Supplier Name,Payment Reference,    Invoice Distribution Amount    ,Description,Supplier Type,Expenditure Type
UK Statistics Family,Office for National Statistics,01/08/2022,Exp - Purchase Of Goods/Services - Other ICT Costs Software,Finance,Scc,235970,"104,690.46",Software Licenses,Large,Programme Expenditure
UK Statistics Family,Office for National Statistics,01/08/2022,Exp - Purchase Of Goods/Services - Contractors,CLOUD ARCHITECTURE,Certes Computing Ltd,235973,"17,604.65",Information Management Services,SME,Programme Expenditure
UK Statistics Family,Office for National Statistics,01/08/2022,Exp - Purchase Of Goods/Services - Contractors,Strategy And Architecture,Certes Computing Ltd,235973,"13,500.00",Information Management Services,SME,Programme Expenditure
UK Statistics Family,Office for National Statistics,01/08/2022,Exp - Purchase Of Goods/Services - Contractors,Tech Delivery Legacy Sp,Certes Computing Ltd,235973,"12,600.00",Information Management Services,SME,Programme Expenditure
UK Statistics Family,Office for National Statistics,01/08/2022,Exp - Purchase Of Goods/Services - Contractors,Digital Publishing,La International,235974,"3,593.40",Information Management Services,SME,Programme Expenditure
UK Statistics Family,Office for National Statistics,01/08/2022,Exp - Purchase Of Goods/Services - Contractors,Data Architecture,La International,235974,"4,281.18",Information Management Services,SME,Programme Expenditure
UK Statistics Family,Office for National Statistics,01/08/2022,Exp - Purchase Of Goods/Services - Contractors,Tech Delivery Legacy Sp,La International,235974,"6,160.80",Information Management Services,SME,Programme Expenditure
UK Statistics Family,Office for National Statistics,01/08/2022,Exp - Purchase Of Goods/Services - Contractors,Tech Delivery Next Gen IT And Infrastructure,La International,235974,"11,533.86",Information Management Services,SME,Programme Expenditure
UK Statistics Family,Office for National Statistics,01/08/2022,Exp - Purchase Of Goods/Services - Contractors,IT Applications,La International,235974,"19,780.04",Information Management Services,SME,Programme Expenditure
UK Statistics Family,Office for National Statistics,01/08/2022,Exp - Purchase Of Goods/Services - IT Contractual Services,CLOUD ARCHITECTURE,CTS (Cloud Technology Solutions Ltd),235976,"128,013.60",Information Management Services,Large,Programme Expenditure
UK Statistics Family,Office for National Statistics,01/08/2022,Exp - Purchase Of Goods/Services - IT Contractual Services,CDIO UNGP,CTS (Cloud Technology Solutions Ltd),235976,"72,906.00",Information Management Services,Large,Programme Expenditure
UK Statistics Family,Office for National Statistics,01/08/2022,Exp - Purchase Of Goods/Services - IT Contractual Services,CDIO UNGP,Methods Business & Digital Technology Ltd,235977,"15,000.00",Information Management Services,Large,Programme Expenditure
UK Statistics Family,Office for National Statistics,01/08/2022,Exp - Purchase Of Goods/Services - IT Contractual Services,Digital Delivery,Methods Business & Digital Technology Ltd,235977,"12,000.00",Information Management Services,Large,Programme Expenditure
UK Statistics Family,Office for National Statistics,01/08/2022,Exp - Purchase Of Goods/Services - Incentive Payments,Survey Management,Sodexo Motivation Solutions U.K. ltd,235978,"20,185.56",Survey Response Incentive Vouchers,Large,Programme Expenditure
UK Statistics Family,Office for National Statistics,01/08/2022,Exp - Purchase Of Goods/Services - Incentive Payments,Survey Management,Sodexo Motivation Solutions U.K. ltd,235978,"8,860.86",Survey Response Incentive Vouchers,Large,Programme Expenditure
UK Statistics Family,Office for National Statistics,01/08/2022,Exp - Purchase Of Goods/Services - Incentive Payments,Survey Management,Sodexo Motivation Solutions U.K. ltd,235978,"8,627.79",Survey Response Incentive Vouchers,Large,Programme Expenditure
UK Statistics Family,Office for National Statistics,01/08/2022,Exp - Purchase Of Goods/Services - Incentive Payments,Survey Management,Sodexo Motivation Solutions U.K. ltd,235978,"11,113.18",Survey Response Incentive Vouchers,Large,Programme Expenditure
UK Statistics Family,Office for National Statistics,01/08/2022,Exp - Purchase Of Goods/Services - Incentive Payments,Survey Management,Sodexo Motivation Solutions U.K. ltd,235978,"42,583.68",Survey Response Incentive Vouchers,Large,Programme Expenditure
UK Statistics Family,Office for National Statistics,01/08/2022,Exp - Purchase Of Goods/Services - Contractors,Consultancy Management,LA FOSSE ASSOCIATES LIMITED,235979,"18,630.00",Information Management Services,Large,Programme Expenditure
UK Statistics Family,Office for National Statistics,01/08/2022,Exp - Purchase Of Goods/Services - Contractors,Digital Publishing,LA FOSSE ASSOCIATES LIMITED,235979,"11,730.00",Information Management Services,Large,Programme Expenditure
UK Statistics Family,Office for National Statistics,01/08/2022,Exp - Purchase Of Goods/Services - Contractors,CDIO UNGP,LA FOSSE ASSOCIATES LIMITED,235979,"40,890.00",Information Management Services,Large,Programme Expenditure
UK Statistics Family,Office for National Statistics,02/08/2022,Other Goods And Services,Covid Infection Survey,University of Manchester,236232,"64,580.94",Statistical Services,SME,Programme Expenditure
UK Statistics Family,Office for National Statistics,02/08/2022,End User Software And Hardware,IT Operations,Somerford Associates,236234,"639,697.69",Software Licenses,Large,Programme Expenditure
UK Statistics Family,Office for National Statistics,03/08/2022,Surveys,Crime Statistics,Kantar Public UK Ltd.,236414,"474,045.90",Statistical Services,SME,Programme Expenditure
UK Statistics Family,Office for National Statistics,03/08/2022,FM Contract Payments,Vinci Payments,Vinci Construction UK Limited,236417,"343,839.66",Facilities Mangement Services,Large,Programme Expenditure
UK Statistics Family,Office for National Statistics,03/08/2022,Exp - Purchase Of Goods/Services - Contractors,Testing,Certes Computing Ltd,236430,"13,719.38",Information Management Services,SME,Programme Expenditure
UK Statistics Family,Office for National Statistics,03/08/2022,Exp - Purchase Of Goods/Services - Contractors,Data Architecture,Certes Computing Ltd,236430,"15,207.70",Information Management Services,SME,Programme Expenditure
UK Statistics Family,Office for National Statistics,03/08/2022,Exp - Purchase Of Goods/Services - Contractors,Digital Publishing,SmartSourcing Ltd,236440,"37,400.06",Information Management Services,SME,Programme Expenditure
UK Statistics Family,Office for National Statistics,03/08/2022,Exp - Purchase Of Goods/Services - Contractors,Testing,Parity Resources Limited,236442,"9,534.69",Information Management Services,Large,Programme Expenditure
UK Statistics Family,Office for National Statistics,03/08/2022,Exp - Purchase Of Goods/Services - Contractors,Covid Infection Survey,Parity Resources Limited,236442,"7,185.12",Information Management Services,Large,Programme Expenditure
UK Statistics Family,Office for National Statistics,03/08/2022,Exp - Short-Term Contract & Agency Staff - Full Cost,Recruitment ,Parity Resources Limited,236442,"2,110.68",Information Management Services,Large,Programme Expenditure
UK Statistics Family,Office for National Statistics,03/08/2022,Exp - Purchase Of Goods/Services - Contractors,Security Advisory,Parity Resources Limited,236442,"8,721.00",Information Management Services,Large,Programme Expenditure
UK Statistics Family,Office for National Statistics,03/08/2022,Exp - Purchase Of Goods/Services - Contractors,Data Architecture,Parity Resources Limited,236442,"14,431.50",Information Management Services,Large,Programme Expenditure
UK Statistics Family,Office for National Statistics,03/08/2022,Exp - Purchase Of Goods/Services - Contractors,CLOUD ARCHITECTURE,Parity Resources Limited,236442,"10,800.00",Information Management Services,Large,Programme Expenditure
UK Statistics Family,Office for National Statistics,03/08/2022,Exp - Purchase Of Goods/Services - Contractors,CLOUD ARCHITECTURE,Parity Resources Limited,236442,"6,174.90",Information Management Services,Large,Programme Expenditure
UK Statistics Family,Office for National Statistics,03/08/2022,Exp - Purchase Of Goods/Services - Contractors,Strategy And Architecture,Parity Resources Limited,236442,"16,420.96",Information Management Services,Large,Programme Expenditure
UK Statistics Family,Office for National Statistics,03/08/2022,Exp - Purchase Of Goods/Services - Contractors,Strategy And Architecture,Parity Resources Limited,236442,"8,421.00",Information Management Services,Large,Programme Expenditure
UK Statistics Family,Office for National Statistics,03/08/2022,Exp - Purchase Of Goods/Services - Contractors,Tech Delivery Next Gen IT And Infrastructure,Parity Resources Limited,236442,"55,066.80",Information Management Services,Large,Programme Expenditure
UK Statistics Family,Office for National Statistics,03/08/2022,Exp - Purchase Of Goods/Services - Contractors,IT Applications,Parity Resources Limited,236442,"2,723.40",Information Management Services,Large,Programme Expenditure
UK Statistics Family,Office for National Statistics,03/08/2022,Exp - Purchase Of Goods/Services - Contractors,IT Operations,Parity Resources Limited,236442,7101,Information Management Services,Large,Programme Expenditure
UK Statistics Family,Office for National Statistics,03/08/2022,Exp - Purchase Of Goods/Services - Contractors,Data As A Service,Parity Resources Limited,236442,3910.5,Information Management Services,Large,Programme Expenditure
UK Statistics Family,Office for National Statistics,04/08/2022,Buildings Under Construction,Property Newport,Vinci Construction UK Limited,236552,"120,000.00",Facilities Mangement Services,Large,Programme Expenditure
UK Statistics Family,Office for National Statistics,04/08/2022,Exp - Purchase Of Goods/Services - Contractors,Programme Support,Certes Computing Ltd,236557,"6,240.00",Information Management Services,SME,Programme Expenditure
UK Statistics Family,Office for National Statistics,04/08/2022,Exp - Purchase Of Goods/Services - Contractors,Security Advisory,Certes Computing Ltd,236557,"15,820.46",Information Management Services,SME,Programme Expenditure
UK Statistics Family,Office for National Statistics,04/08/2022,Exp - Purchase Of Goods/Services - Contractors,Data Architecture,Certes Computing Ltd,236557,"4,590.18",Information Management Services,SME,Programme Expenditure
UK Statistics Family,Office for National Statistics,04/08/2022,Exp - Purchase Of Goods/Services - Contractors,DATA ENGINEERING OPERATIONS AND DELIVERY,Certes Computing Ltd,236557,"13,947.70",Information Management Services,SME,Programme Expenditure
UK Statistics Family,Office for National Statistics,04/08/2022,Hosting,CLOUD ARCHITECTURE,CTS (Cloud Technology Solutions Ltd),236566,"15,867.65",Information Management Services,Large,Programme Expenditure
UK Statistics Family,Office for National Statistics,04/08/2022,Hosting,CLOUD ARCHITECTURE,CTS (Cloud Technology Solutions Ltd),236566,"175,017.78",Information Management Services,Large,Programme Expenditure
UK Statistics Family,Office for National Statistics,04/08/2022,Telecoms,IT Operations,Cdw Limited,236569,"35,536.80",Information Management Services,Large,Programme Expenditure
UK Statistics Family,Office for National Statistics,04/08/2022,Exp - Short-Term Contract & Agency Staff - Full Cost,Business Change Support,Talent International,236574,"1,920.00",Information Management Services,SME,Programme Expenditure
UK Statistics Family,Office for National Statistics,04/08/2022,Exp - Short-Term Contract & Agency Staff - Full Cost,Business Change Support,Talent International,236574,"15,360.00",Information Management Services,SME,Programme Expenditure
UK Statistics Family,Office for National Statistics,04/08/2022,Exp - Short-Term Contract & Agency Staff - Full Cost,Business Architecture Transformation And Statistical Strategy,Talent International,236574,4891.1,Information Management Services,SME,Programme Expenditure
UK Statistics Family,Office for National Statistics,04/08/2022,Exp - Purchase Of Goods/Services - Contractors,Data Architecture,Talent International,236574,"35,790.00",Information Management Services,SME,Programme Expenditure
UK Statistics Family,Office for National Statistics,04/08/2022,Exp - Purchase Of Goods And Services Consultants,"SUB-NATIONAL STATISTICS AND ANALYSIS
Account	
AccountAutocompletes on TAB	",Matt Hamnet & Associates Ltd,236577,"224,940.00",Consultancy,SME,Programme Expenditure
UK Statistics Family,Office for National Statistics,05/08/2022,Exp - Short-Term Contract & Agency Staff - Full Cost,Covid Infection Survey,Concept Information Technology Ltd T/A Concept Resourcing,236637,"2,964.61",Information Management Services,Large,Programme Expenditure
UK Statistics Family,Office for National Statistics,05/08/2022,Exp - Short-Term Contract & Agency Staff - Full Cost,Covid Infection Survey,Concept Information Technology Ltd T/A Concept Resourcing,236637,742.08,Information Management Services,Large,Programme Expenditure
UK Statistics Family,Office for National Statistics,05/08/2022,Exp - Short-Term Contract & Agency Staff - Full Cost,WIDER SURVEILLANCE STUDIES,Concept Information Technology Ltd T/A Concept Resourcing,236637,62.25,Information Management Services,Large,Programme Expenditure
UK Statistics Family,Office for National Statistics,05/08/2022,Exp - Short-Term Contract & Agency Staff - Full Cost,N A Coordination,Concept Information Technology Ltd T/A Concept Resourcing,236637,"1,235.57",Information Management Services,Large,Programme Expenditure
UK Statistics Family,Office for National Statistics,05/08/2022,Exp - Short-Term Contract & Agency Staff - Full Cost,N A Coordination,Concept Information Technology Ltd T/A Concept Resourcing,236637,"5,298.44",Information Management Services,Large,Programme Expenditure
UK Statistics Family,Office for National Statistics,05/08/2022,Exp - Short-Term Contract & Agency Staff - Full Cost,"SUB-NATIONAL STATISTICS AND ANALYSIS
Account	
AccountAutocompletes on TAB	",Concept Information Technology Ltd T/A Concept Resourcing,236637,"3,706.69",Information Management Services,Large,Programme Expenditure
UK Statistics Family,Office for National Statistics,05/08/2022,Exp - Short-Term Contract & Agency Staff - Full Cost,Recruitment ,Concept Information Technology Ltd T/A Concept Resourcing,236637,"2,599.56",Information Management Services,Large,Programme Expenditure
UK Statistics Family,Office for National Statistics,05/08/2022,Exp - Short-Term Contract & Agency Staff - Full Cost,Data As A Service,Concept Information Technology Ltd T/A Concept Resourcing,236637,"4,535.96",Information Management Services,Large,Programme Expenditure
UK Statistics Family,Office for National Statistics,05/08/2022,Exp - Short-Term Contract & Agency Staff - Full Cost,Prices Division,Concept Information Technology Ltd T/A Concept Resourcing,236637,"6,351.16",Information Management Services,Large,Programme Expenditure
UK Statistics Family,Office for National Statistics,05/08/2022,Exp - Short-Term Contract & Agency Staff - Full Cost,Prices Division,Concept Information Technology Ltd T/A Concept Resourcing,236637,"26,408.76",Information Management Services,Large,Programme Expenditure
UK Statistics Family,Office for National Statistics,05/08/2022,"ICT Outsourcing, Maintenance And Support",Interviewer Support,Totalmobile Ltd,236645,"139,408.52",Information Management Services,SME,Programme Expenditure
UK Statistics Family,Office for National Statistics,05/08/2022,Exp - Purchase Of Goods/Services - Contractors,Testing,Malikshaw Interim & Executive,236646,"14,994.00",Information Management Services,SME,Programme Expenditure
UK Statistics Family,Office for National Statistics,05/08/2022,Exp - Purchase Of Goods/Services - Contractors,INTEGRATED DATA STRATEGY AND DELIVERY,Malikshaw Interim & Executive,236646,"12,240.00",Information Management Services,SME,Programme Expenditure
UK Statistics Family,Office for National Statistics,05/08/2022,Exp - Purchase Of Goods/Services - Contractors,INTEGRATED DATA STRATEGY AND DELIVERY,Malikshaw Interim & Executive,236646,"12,376.37",Information Management Services,SME,Programme Expenditure
UK Statistics Family,Office for National Statistics,05/08/2022,Exp - Purchase Of Goods/Services - Contractors,Data Architecture,Malikshaw Interim & Executive,236646,"17,085.60",Information Management Services,SME,Programme Expenditure
UK Statistics Family,Office for National Statistics,05/08/2022,Exp - Purchase Of Goods/Services - Contractors,Data Architecture,Malikshaw Interim & Executive,236646,"20,865.60",Information Management Services,SME,Programme Expenditure
UK Statistics Family,Office for National Statistics,05/08/2022,Exp - Purchase Of Goods/Services - Contractors,CDIO UNGP,Malikshaw Interim & Executive,236646,"15,990.00",Information Management Services,SME,Programme Expenditure
UK Statistics Family,Office for National Statistics,05/08/2022,Exp - Purchase Of Goods/Services - Incentive Payments,Social Survey Transformation Newport,Sodexo Motivation Solutions U.K. ltd,236649,"1,267.97",Survey Response Incentive Vouchers,Large,Programme Expenditure
UK Statistics Family,Office for National Statistics,05/08/2022,Exp - Purchase Of Goods/Services - Incentive Payments,Covid Infection Survey,Sodexo Motivation Solutions U.K. ltd,236649,"148,096.12",Survey Response Incentive Vouchers,Large,Programme Expenditure
UK Statistics Family,Office for National Statistics,05/08/2022,Exp - Purchase Of Goods/Services - Incentive Payments,GSS Strategy Delivery,Sodexo Motivation Solutions U.K. ltd,236649,236.87,Survey Response Incentive Vouchers,Large,Programme Expenditure
UK Statistics Family,Office for National Statistics,05/08/2022,Exp - Purchase Of Goods/Services - Contractors,Business Architecture,LA FOSSE ASSOCIATES LIMITED,236650,"16,880.00",Information Management Services,Large,Programme Expenditure
UK Statistics Family,Office for National Statistics,05/08/2022,Exp - Purchase Of Goods/Services - Contractors,Testing,LA FOSSE ASSOCIATES LIMITED,236650,"10,150.00",Information Management Services,Large,Programme Expenditure
UK Statistics Family,Office for National Statistics,05/08/2022,Exp - Purchase Of Goods/Services - Contractors,Consultancy Management,LA FOSSE ASSOCIATES LIMITED,236650,13679.77,Information Management Services,Large,Programme Expenditure
UK Statistics Family,Office for National Statistics,05/08/2022,Exp - Purchase Of Goods/Services - Contractors,Consultancy Management,LA FOSSE ASSOCIATES LIMITED,236650,9000,Information Management Services,Large,Programme Expenditure
UK Statistics Family,Office for National Statistics,05/08/2022,Exp - Purchase Of Goods/Services - Contractors,Digital Publishing,LA FOSSE ASSOCIATES LIMITED,236650,"14,400.00",Information Management Services,Large,Programme Expenditure
UK Statistics Family,Office for National Statistics,05/08/2022,Exp - Purchase Of Goods/Services - Contractors,Data Architecture,LA FOSSE ASSOCIATES LIMITED,236650,"14,400.00",Information Management Services,Large,Programme Expenditure
UK Statistics Family,Office for National Statistics,05/08/2022,Exp - Purchase Of Goods/Services - Contractors,Data Architecture,LA FOSSE ASSOCIATES LIMITED,236650,"14,400.00",Information Management Services,Large,Programme Expenditure
UK Statistics Family,Office for National Statistics,05/08/2022,Exp - Purchase Of Goods/Services - Contractors,CDIO UNGP,LA FOSSE ASSOCIATES LIMITED,236650,"29,550.00",Information Management Services,Large,Programme Expenditure
UK Statistics Family,Office for National Statistics,05/08/2022,Exp - Purchase Of Goods/Services - Contractors,Digital Delivery,LA FOSSE ASSOCIATES LIMITED,236650,"14,400.00",Information Management Services,Large,Programme Expenditure
UK Statistics Family,Office for National Statistics,05/08/2022,Exp - Purchase Of Goods/Services - Contractors,Data As A Service,LA FOSSE ASSOCIATES LIMITED,236650,"14,400.00",Information Management Services,Large,Programme Expenditure
UK Statistics Family,Office for National Statistics,05/08/2022,Exp - Purchase Of Goods/Services - Contractors,BUSINESS STRATEGY PERFORMANCE AND PMO,SmartSourcing Ltd,236651,"10,466.06",Information Management Services,SME,Programme Expenditure
UK Statistics Family,Office for National Statistics,05/08/2022,Exp - Short-Term Contract & Agency Staff - Full Cost,Data Architecture,SmartSourcing Ltd,236651,"2,130.48",Information Management Services,SME,Programme Expenditure
UK Statistics Family,Office for National Statistics,05/08/2022,Exp - Purchase Of Goods/Services - Contractors,Data Architecture,SmartSourcing Ltd,236651,"52,810.66",Information Management Services,SME,Programme Expenditure
UK Statistics Family,Office for National Statistics,05/08/2022,Exp - Purchase Of Goods/Services - Contractors,Tech Delivery Next Gen IT And Infrastructure,SmartSourcing Ltd,236651,"14,025.03",Information Management Services,SME,Programme Expenditure
UK Statistics Family,Office for National Statistics,05/08/2022,Exp - Purchase Of Goods/Services - Contractors,IT Operations,SmartSourcing Ltd,236651,"21,248.11",Information Management Services,SME,Programme Expenditure
UK Statistics Family,Office for National Statistics,05/08/2022,Exp - Purchase Of Goods/Services - Contractors,IT Operations,SmartSourcing Ltd,236651,"12,467.71",Information Management Services,SME,Programme Expenditure
UK Statistics Family,Office for National Statistics,05/08/2022,Exp - Purchase Of Goods/Services - Contractors,DATA ENGINEERING OPERATIONS AND DELIVERY,SmartSourcing Ltd,236651,"13,843.87",Information Management Services,SME,Programme Expenditure
UK Statistics Family,Office for National Statistics,05/08/2022,Exp - Purchase Of Goods/Services - Contractors,Data As A Service,SmartSourcing Ltd,236651,"2,636.93",Information Management Services,SME,Programme Expenditure
UK Statistics Family,Office for National Statistics,05/08/2022,Exp - Purchase Of Goods And Services Consultants,Security Advisory,Bridewell Consulting Limited,236654,"148,767.68",Consultancy,SME,Programme Expenditure
UK Statistics Family,Office for National Statistics,05/08/2022,Exp - Purchase Of Goods/Services - Training & Development - Seminar & Conference Fees,Learning And Capability,Synergy Learning,236656,"25,416.00",Training and Educational Services,Small,Programme Expenditure
UK Statistics Family,Office for National Statistics,05/08/2022,Exp - Purchase Of Goods/Services - Contractors,Covid Infection Survey,Talent International,236657,"4,940.00",Information Management Services,SME,Programme Expenditure
UK Statistics Family,Office for National Statistics,05/08/2022,Exp - Purchase Of Goods/Services - Contractors,Covid Infection Survey,Talent International,236657,"13,000.00",Information Management Services,SME,Programme Expenditure
UK Statistics Family,Office for National Statistics,05/08/2022,Exp - Purchase Of Goods/Services - Contractors,Data Architecture,Talent International,236657,"25,500.00",Information Management Services,SME,Programme Expenditure
UK Statistics Family,Office for National Statistics,05/08/2022,Exp - Purchase Of Goods/Services - Contractors,Data Architecture,Talent International,236657,"22,560.00",Information Management Services,SME,Programme Expenditure
UK Statistics Family,Office for National Statistics,05/08/2022,Exp - Purchase Of Goods/Services - Contractors,Strategy And Architecture,Talent International,236657,"25,500.00",Information Management Services,SME,Programme Expenditure
UK Statistics Family,Office for National Statistics,05/08/2022,Exp - Purchase Of Goods/Services - Contractors,Strategy And Architecture,Talent International,236657,"21,000.00",Information Management Services,SME,Programme Expenditure
UK Statistics Family,Office for National Statistics,05/08/2022,Exp - Purchase Of Goods/Services - Contractors,IT Applications,Talent International,236657,"37,470.00",Information Management Services,SME,Programme Expenditure
UK Statistics Family,Office for National Statistics,08/08/2022,Surveys,Crime Statistics,Kantar Public UK Ltd.,236728,"474,045.90",Statistical Services,SME,Programme Expenditure
UK Statistics Family,Office for National Statistics,08/08/2022,Exp - Short-Term Contract & Agency Staff - Full Cost,N A Coordination,Concept Information Technology Ltd T/A Concept Resourcing,236729,"4,390.79",Information Management Services,Large,Programme Expenditure
UK Statistics Family,Office for National Statistics,08/08/2022,Exp - Short-Term Contract & Agency Staff - Full Cost,Crime Income And Wealth,Concept Information Technology Ltd T/A Concept Resourcing,236729,"23,087.97",Information Management Services,Large,Programme Expenditure
UK Statistics Family,Office for National Statistics,08/08/2022,Exp - Short-Term Contract & Agency Staff - Full Cost,DATA ENGINEERING OPERATIONS AND DELIVERY,Concept Information Technology Ltd T/A Concept Resourcing,236729,"3,075.00",Information Management Services,Large,Programme Expenditure
UK Statistics Family,Office for National Statistics,08/08/2022,Exp - Short-Term Contract & Agency Staff - Full Cost,Data As A Service,Concept Information Technology Ltd T/A Concept Resourcing,236729,709.61,Information Management Services,Large,Programme Expenditure
UK Statistics Family,Office for National Statistics,08/08/2022,Exp - Short-Term Contract & Agency Staff - Full Cost,Prices Division,Concept Information Technology Ltd T/A Concept Resourcing,236729,"3,088.91",Information Management Services,Large,Programme Expenditure
UK Statistics Family,Office for National Statistics,08/08/2022,Exp - Purchase Of Goods/Services - Contractors,Digital Media,Certes Computing Ltd,236735,"11,849.26",Information Management Services,SME,Programme Expenditure
UK Statistics Family,Office for National Statistics,08/08/2022,Exp - Purchase Of Goods/Services - Contractors,Data Architecture,Certes Computing Ltd,236735,"14,112.58",Information Management Services,SME,Programme Expenditure
UK Statistics Family,Office for National Statistics,08/08/2022,Exp - Purchase Of Goods/Services - Contractors,Business Architecture,La International,236736,"2,909.13",Information Management Services,SME,Programme Expenditure
UK Statistics Family,Office for National Statistics,08/08/2022,Exp - Purchase Of Goods/Services - Contractors,Business Architecture,La International,236736,"2,245.58",Information Management Services,SME,Programme Expenditure
UK Statistics Family,Office for National Statistics,08/08/2022,Exp - Purchase Of Goods/Services - Contractors,Testing,La International,236736,"8,306.23",Information Management Services,SME,Programme Expenditure
UK Statistics Family,Office for National Statistics,08/08/2022,Exp - Purchase Of Goods/Services - Contractors,Testing,La International,236736,"6,593.82",Information Management Services,SME,Programme Expenditure
UK Statistics Family,Office for National Statistics,08/08/2022,Exp - Purchase Of Goods/Services - Contractors,Testing,La International,236736,"3,317.65",Information Management Services,SME,Programme Expenditure
UK Statistics Family,Office for National Statistics,08/08/2022,Exp - Purchase Of Goods/Services - Contractors,Consultancy Management,La International,236736,"3,681.18",Information Management Services,SME,Programme Expenditure
UK Statistics Family,Office for National Statistics,08/08/2022,Exp - Purchase Of Goods/Services - Contractors,Security And Information Management Saim,La International,236736,"27,930.00",Information Management Services,SME,Programme Expenditure
UK Statistics Family,Office for National Statistics,08/08/2022,Exp - Purchase Of Goods/Services - Contractors,Data Architecture,La International,236736,"17,484.16",Information Management Services,SME,Programme Expenditure
UK Statistics Family,Office for National Statistics,08/08/2022,Exp - Purchase Of Goods/Services - Contractors,Data Architecture,La International,236736,"4,281.18",Information Management Services,SME,Programme Expenditure
UK Statistics Family,Office for National Statistics,08/08/2022,Other Goods And Services,ONS Corporate Funds,Edenred (UK Group) Limited,236748,"42,200.00",Performance Reward Vouchers,Large,Programme Expenditure
UK Statistics Family,Office for National Statistics,09/08/2022,Surveys,Prices Division,Kantar Public UK Ltd.,236893,"220,323.80",Statistical Services,SME,Programme Expenditure
UK Statistics Family,Office for National Statistics,09/08/2022,Exp - Short-Term Contract & Agency Staff - Full Cost,Covid Infection Survey,Concept Information Technology Ltd T/A Concept Resourcing,236896,"1,651.56",Information Management Services,Large,Programme Expenditure
UK Statistics Family,Office for National Statistics,09/08/2022,Exp - Short-Term Contract & Agency Staff - Full Cost,Covid Infection Survey,Concept Information Technology Ltd T/A Concept Resourcing,236896,"3,596.63",Information Management Services,Large,Programme Expenditure
UK Statistics Family,Office for National Statistics,09/08/2022,Exp - Short-Term Contract & Agency Staff - Full Cost,"SUB-NATIONAL STATISTICS AND ANALYSIS
Account	
AccountAutocompletes on TAB	",Concept Information Technology Ltd T/A Concept Resourcing,236896,"2,537.90",Information Management Services,Large,Programme Expenditure
UK Statistics Family,Office for National Statistics,09/08/2022,Exp - Short-Term Contract & Agency Staff - Full Cost,Ask Business Services,Concept Information Technology Ltd T/A Concept Resourcing,236896,"10,912.84",Information Management Services,Large,Programme Expenditure
UK Statistics Family,Office for National Statistics,09/08/2022,Exp - Purchase Of Goods/Services - Contractors,CLOUD ARCHITECTURE,Concept Information Technology Ltd T/A Concept Resourcing,236896,"6,300.00",Information Management Services,Large,Programme Expenditure
UK Statistics Family,Office for National Statistics,09/08/2022,Exp - Purchase Of Goods/Services - Contractors,CDIO UNGP,Concept Information Technology Ltd T/A Concept Resourcing,236896,"16,204.51",Information Management Services,Large,Programme Expenditure
UK Statistics Family,Office for National Statistics,09/08/2022,Exp - Purchase Of Goods/Services - IT Contractual Services,Tech Delivery Legacy Sp,Concept Information Technology Ltd T/A Concept Resourcing,236896,2880,Information Management Services,Large,Programme Expenditure
UK Statistics Family,Office for National Statistics,09/08/2022,Travel And Subsistence,Corporate Centre,Corporate Travel Management ,236899,"29,434.04",Travel and Accommodation,SME,Programme Expenditure
UK Statistics Family,Office for National Statistics,09/08/2022,Exp - Purchase Of Goods/Services - Contractors,Strategy And Architecture,Certes Computing Ltd,236902,"9,000.00",Information Management Services,SME,Programme Expenditure
UK Statistics Family,Office for National Statistics,09/08/2022,Exp - Purchase Of Goods/Services - Contractors,Strategy And Architecture,Certes Computing Ltd,236902,"9,158.82",Information Management Services,SME,Programme Expenditure
UK Statistics Family,Office for National Statistics,09/08/2022,Exp - Purchase Of Goods/Services - Contractors,Tech Delivery Legacy Sp,Certes Computing Ltd,236902,"8,400.00",Information Management Services,SME,Programme Expenditure
UK Statistics Family,Office for National Statistics,09/08/2022,Exp - Purchase Of Goods/Services - Contractors,IT Applications,Certes Computing Ltd,236902,"16,302.68",Information Management Services,SME,Programme Expenditure
UK Statistics Family,Office for National Statistics,09/08/2022,Exp - Purchase Of Goods/Services - Contractors,IT Operations,Certes Computing Ltd,236902,"15,207.70",Information Management Services,SME,Programme Expenditure
UK Statistics Family,Office for National Statistics,09/08/2022,Exp - Purchase Of Goods/Services - Contractors,Digital Delivery,Certes Computing Ltd,236902,"14,038.60",Information Management Services,SME,Programme Expenditure
UK Statistics Family,Office for National Statistics,09/08/2022,End User Software And Hardware,Security Operations,Computacenter (Uk) Limited,236904,"48,239.46",Software Licenses,Large,Programme Expenditure
UK Statistics Family,Office for National Statistics,09/08/2022,Exp - Purchase Of Goods/Services - Training & Development - Professional Membership Fees,"SUB-NATIONAL STATISTICS AND ANALYSIS
",HMRC,236908,"41,328.00",Government Operational Research Service Subscription,Large,Programme Expenditure
UK Statistics Family,Office for National Statistics,10/08/2022,Exp - Short-Term Contract & Agency Staff - Full Cost,International Trade And Transactions,Concept Information Technology Ltd T/A Concept Resourcing,237043,"3,920.52",Information Management Services,Large,Programme Expenditure
UK Statistics Family,Office for National Statistics,10/08/2022,Exp - Short-Term Contract & Agency Staff - Full Cost,International Trade And Transactions,Concept Information Technology Ltd T/A Concept Resourcing,237043,"25,959.82",Information Management Services,Large,Programme Expenditure
UK Statistics Family,Office for National Statistics,10/08/2022,Exp - Short-Term Contract & Agency Staff - Full Cost,Business Architecture Transformation And Statistical Strategy,Concept Information Technology Ltd T/A Concept Resourcing,237043,823.70,Information Management Services,Large,Programme Expenditure
UK Statistics Family,Office for National Statistics,10/08/2022,Exp - Short-Term Contract & Agency Staff - Full Cost,Business Architecture Transformation And Statistical Strategy,Concept Information Technology Ltd T/A Concept Resourcing,237043,"8,237.08",Information Management Services,Large,Programme Expenditure
UK Statistics Family,Office for National Statistics,10/08/2022,Exp - Short-Term Contract & Agency Staff - Full Cost,Business Architecture Transformation And Statistical Strategy,Concept Information Technology Ltd T/A Concept Resourcing,237043,"4,324.48",Information Management Services,Large,Programme Expenditure
UK Statistics Family,Office for National Statistics,10/08/2022,Exp - Short-Term Contract & Agency Staff - Full Cost,ESD Central,Concept Information Technology Ltd T/A Concept Resourcing,237043,"1,029.64",Information Management Services,Large,Programme Expenditure
UK Statistics Family,Office for National Statistics,10/08/2022,Exp - Short-Term Contract & Agency Staff - Full Cost,Commercial Services,Concept Information Technology Ltd T/A Concept Resourcing,237043,"2,831.63",Information Management Services,Large,Programme Expenditure
UK Statistics Family,Office for National Statistics,10/08/2022,Exp - Short-Term Contract & Agency Staff - Full Cost,Ask Business Services,Concept Information Technology Ltd T/A Concept Resourcing,237043,589.63,Information Management Services,Large,Programme Expenditure
UK Statistics Family,Office for National Statistics,10/08/2022,Exp - Short-Term Contract & Agency Staff - Full Cost,Public Sector And Households,Concept Information Technology Ltd T/A Concept Resourcing,237043,"4,227.07",Information Management Services,Large,Programme Expenditure
UK Statistics Family,Office for National Statistics,10/08/2022,Exp - Short-Term Contract & Agency Staff - Full Cost,Social Surveys Division,Concept Information Technology Ltd T/A Concept Resourcing,237043,10090.43,Information Management Services,Large,Programme Expenditure
UK Statistics Family,Office for National Statistics,10/08/2022,Exp - Purchase Of Goods/Services - IT Contractual Services,IT Operations,Ibm United Kingdom Ltd,237045,"88,909.44",Information Management Services,Large,Programme Expenditure
UK Statistics Family,Office for National Statistics,10/08/2022,Exp - Purchase Of Goods/Services - IT Contractual Services,IT Operations,Ibm United Kingdom Ltd,237045,"96,321.00",Information Management Services,Large,Programme Expenditure
UK Statistics Family,Office for National Statistics,10/08/2022,Exp - Purchase Of Goods/Services - Contractors,Data Architecture,Certes Computing Ltd,237048,"14,398.56",Information Management Services,SME,Programme Expenditure
UK Statistics Family,Office for National Statistics,10/08/2022,Exp - Purchase Of Goods/Services - Contractors,Data Architecture,Certes Computing Ltd,237048,"12,310.99",Information Management Services,SME,Programme Expenditure
UK Statistics Family,Office for National Statistics,10/08/2022,Exp - Purchase Of Goods/Services - Contractors,DATA ENGINEERING OPERATIONS AND DELIVERY,Certes Computing Ltd,237048,"18,292.68",Information Management Services,SME,Programme Expenditure
UK Statistics Family,Office for National Statistics,10/08/2022,End User Software And Hardware,IT Operations,Computacenter (Uk) Limited,237055,"990,312.60",Software Licenses,Large,Programme Expenditure
UK Statistics Family,Office for National Statistics,10/08/2022,Exp - Purchase Of Goods/Services - Contractors,Digital Publishing,Malikshaw Interim & Executive,237057,"13,751.52",Information Management Services,SME,Programme Expenditure
UK Statistics Family,Office for National Statistics,10/08/2022,Exp - Short-Term Contract & Agency Staff - Full Cost,Business Architecture Transformation And Statistical Strategy,Malikshaw Interim & Executive,237057,"5,700.70",Information Management Services,SME,Programme Expenditure
UK Statistics Family,Office for National Statistics,10/08/2022,Exp - Purchase Of Goods/Services - Contractors,Data Architecture,Malikshaw Interim & Executive,237057,"18,345.60",Information Management Services,SME,Programme Expenditure
UK Statistics Family,Office for National Statistics,10/08/2022,Exp - Purchase Of Goods/Services - Contractors,DATA ENGINEERING OPERATIONS AND DELIVERY,Malikshaw Interim & Executive,237057,"19,605.60",Information Management Services,SME,Programme Expenditure
UK Statistics Family,Office for National Statistics,10/08/2022,Exp - Purchase Of Goods And Services Consultants,2023 CENSUS DATA TRANSFORMATION,The Sensible Code Company,237062,"237,725.46",Statistical Services,SME,Programme Expenditure
UK Statistics Family,Office for National Statistics,10/08/2022,Exp - Purchase Of Goods/Services - Contractors,Digital Publishing,LA FOSSE ASSOCIATES LIMITED,237064,"29,580.00",Information Management Services,Large,Programme Expenditure
UK Statistics Family,Office for National Statistics,10/08/2022,Other Goods And Services,Survey Management,Banner Group Ltd,237066,"214,028.56",Stationery,SME,Programme Expenditure
UK Statistics Family,Office for National Statistics,10/08/2022,Exp - Purchase Of Goods/Services - Contractors,Consultancy Management,Talent International,237068,"21,899.95",Information Management Services,SME,Programme Expenditure
UK Statistics Family,Office for National Statistics,10/08/2022,Exp - Purchase Of Goods/Services - Contractors,Consultancy Management,Talent International,237068,"18,450.00",Information Management Services,SME,Programme Expenditure
UK Statistics Family,Office for National Statistics,10/08/2022,Exp - Purchase Of Goods/Services - Contractors,Digital Publishing,Talent International,237068,"20,160.00",Information Management Services,SME,Programme Expenditure
UK Statistics Family,Office for National Statistics,10/08/2022,Exp - Purchase Of Goods/Services - Contractors,Security Advisory,Talent International,237068,"14,249.81",Information Management Services,SME,Programme Expenditure
UK Statistics Family,Office for National Statistics,10/08/2022,Exp - Purchase Of Goods/Services - Contractors,Security Advisory,Talent International,237068,"2,999.96",Information Management Services,SME,Programme Expenditure
UK Statistics Family,Office for National Statistics,10/08/2022,Exp - Purchase Of Goods/Services - Contractors,Tech Delivery Legacy Sp,Talent International,237068,"23,970.00",Information Management Services,SME,Programme Expenditure
UK Statistics Family,Office for National Statistics,10/08/2022,Exp - Purchase Of Goods/Services - Contractors,Tech Delivery Next Gen IT And Infrastructure,Talent International,237068,"20,223.00",Information Management Services,SME,Programme Expenditure
UK Statistics Family,Office for National Statistics,10/08/2022,Exp - Purchase Of Goods/Services - Contractors,IT Operations,Talent International,237068,"36,000.00",Information Management Services,SME,Programme Expenditure
UK Statistics Family,Office for National Statistics,10/08/2022,Exp - Short-Term Contract & Agency Staff - Full Cost,DATA ENGINEERING OPERATIONS AND DELIVERY,Talent International,237068,"2,592.80",Information Management Services,SME,Programme Expenditure
UK Statistics Family,Office for National Statistics,10/08/2022,Exp - Short-Term Contract & Agency Staff - Full Cost,Data As A Service,Talent International,237068,"4,484.89",Information Management Services,SME,Programme Expenditure
UK Statistics Family,Office for National Statistics,10/08/2022,End User Software And Hardware,Learning And Capability,SKILLSOFT UK LIMITED,237070,"132,451.90",Software Licenses,Large,Programme Expenditure
UK Statistics Family,Office for National Statistics,10/08/2022,Exp - Purchase Of Goods/Services - IT Contractual Services,Digital Delivery,Armakuni Ltd,237071,"44,880.00",Information Management Services,SME,Programme Expenditure
UK Statistics Family,Office for National Statistics,11/08/2022,Exp - Purchase Of Goods/Services - IT Contractual Services,IT Operations,Information Security Forum Limited,237184,"27,600.00",Information Management Services,Large,Programme Expenditure
UK Statistics Family,Office for National Statistics,11/08/2022,Exp - Purchase Of Goods/Services - Contractors,INTEGRATED DATA STRATEGY AND DELIVERY,LA FOSSE ASSOCIATES LIMITED,237187,"30,240.00",Information Management Services,Large,Programme Expenditure
UK Statistics Family,Office for National Statistics,11/08/2022,Exp - Purchase Of Goods/Services - Contractors,Data Capability,Parity Resources Limited,237190,"5,661.83",Information Management Services,Large,Programme Expenditure
UK Statistics Family,Office for National Statistics,11/08/2022,Exp - Purchase Of Goods And Services Consultants,Policy Secretariat,Parity Resources Limited,237190,"2,538.60",Information Management Services,Large,Programme Expenditure
UK Statistics Family,Office for National Statistics,11/08/2022,Exp - Purchase Of Goods/Services - Contractors,Analysis Microdata And Engagement,Parity Resources Limited,237190,"1,281.60",Information Management Services,Large,Programme Expenditure
UK Statistics Family,Office for National Statistics,11/08/2022,Exp - Short-Term Contract & Agency Staff - Full Cost,Business Architecture Transformation And Statistical Strategy,Parity Resources Limited,237190,"8,276.26",Information Management Services,Large,Programme Expenditure
UK Statistics Family,Office for National Statistics,11/08/2022,Exp - Short-Term Contract & Agency Staff - Full Cost,Recruitment ,Parity Resources Limited,237190,"2,791.80",Information Management Services,Large,Programme Expenditure
UK Statistics Family,Office for National Statistics,11/08/2022,Exp - Purchase Of Goods/Services - Contractors,Security Advisory,Parity Resources Limited,237190,"25,741.96",Information Management Services,Large,Programme Expenditure
UK Statistics Family,Office for National Statistics,11/08/2022,Exp - Purchase Of Goods/Services - Contractors,CLOUD ARCHITECTURE,Parity Resources Limited,237190,"3,600.00",Information Management Services,Large,Programme Expenditure
UK Statistics Family,Office for National Statistics,11/08/2022,Exp - Purchase Of Goods/Services - Contractors,IT Applications,Parity Resources Limited,237190,"10,998.18",Information Management Services,Large,Programme Expenditure
UK Statistics Family,Office for National Statistics,11/08/2022,Exp - Purchase Of Goods/Services - Contractors,Data As A Service,Parity Resources Limited,237190,"11,731.50",Information Management Services,Large,Programme Expenditure
UK Statistics Family,Office for National Statistics,11/08/2022,Exp - Purchase Of Goods/Services - Contractors,International Trade And Transactions,Talent International,237192,"9,828.00",Information Management Services,SME,Programme Expenditure
UK Statistics Family,Office for National Statistics,11/08/2022,Exp - Purchase Of Goods/Services - Contractors,Researcher Support And Data Access ,Talent International,237192,"9,000.00",Information Management Services,SME,Programme Expenditure
UK Statistics Family,Office for National Statistics,11/08/2022,Exp - Purchase Of Goods/Services - Contractors,INTEGRATED DATA STRATEGY AND DELIVERY,Talent International,237192,"17,250.00",Information Management Services,SME,Programme Expenditure
UK Statistics Family,Office for National Statistics,11/08/2022,Exp - Purchase Of Goods/Services - Contractors,Digital Delivery,Talent International,237192,"8,988.00",Information Management Services,SME,Programme Expenditure
UK Statistics Family,Office for National Statistics,12/08/2022,Buildings Under Construction,Property Titchfield,Vinci Construction UK Limited,237280,"62,432.10",Facilities Mangement Services,Large,Programme Expenditure
UK Statistics Family,Office for National Statistics,12/08/2022,Telecoms,IT Operations,Bt Global Services,237283,"47,915.94",Telecommunications,Large,Programme Expenditure
UK Statistics Family,Office for National Statistics,12/08/2022,Postage,Property Titchfield,Pitney Bowes Ltd,237284,"96,589.43",Postage Services,Large,Programme Expenditure
UK Statistics Family,Office for National Statistics,12/08/2022,Other Goods And Services,Office Of Chief Data And Information,Totaljobs Group Ltd,237293,"33,213.60",Recruitment Services,SME,Programme Expenditure
UK Statistics Family,Office for National Statistics,12/08/2022,Exp - Purchase Of Goods/Services - Incentive Payments,Survey Management,Sodexo Motivation Solutions U.K. ltd,237294,"2,012.92",Survey Response Incentive Vouchers,Large,Programme Expenditure
UK Statistics Family,Office for National Statistics,12/08/2022,Exp - Purchase Of Goods/Services - Incentive Payments,Survey Management,Sodexo Motivation Solutions U.K. ltd,237294,"74,231.70",Survey Response Incentive Vouchers,Large,Programme Expenditure
UK Statistics Family,Office for National Statistics,12/08/2022,Exp - Purchase Of Goods/Services - Incentive Payments,Survey Management,Sodexo Motivation Solutions U.K. ltd,237294,"1,558.73",Survey Response Incentive Vouchers,Large,Programme Expenditure
UK Statistics Family,Office for National Statistics,12/08/2022,Exp - Purchase Of Goods/Services - Incentive Payments,Survey Management,Sodexo Motivation Solutions U.K. ltd,237294,"1,602.31",Survey Response Incentive Vouchers,Large,Programme Expenditure
UK Statistics Family,Office for National Statistics,12/08/2022,Exp - Purchase Of Goods/Services - Incentive Payments,Survey Management,Sodexo Motivation Solutions U.K. ltd,237294,19595.93,Survey Response Incentive Vouchers,Large,Programme Expenditure
UK Statistics Family,Office for National Statistics,12/08/2022,Exp - Purchase Of Goods/Services - Incentive Payments,Survey Management,Sodexo Motivation Solutions U.K. ltd,237294,"2,577.86",Survey Response Incentive Vouchers,Large,Programme Expenditure
UK Statistics Family,Office for National Statistics,12/08/2022,Exp - Purchase Of Goods/Services - Incentive Payments,Covid Infection Survey,Sodexo Motivation Solutions U.K. ltd,237294,"72,699.00",Survey Response Incentive Vouchers,Large,Programme Expenditure
UK Statistics Family,Office for National Statistics,12/08/2022,Exp - Purchase Of Goods/Services - Incentive Payments,Strategy And Engagement,Sodexo Motivation Solutions U.K. ltd,237294,217.12,Survey Response Incentive Vouchers,Large,Programme Expenditure
UK Statistics Family,Office for National Statistics,12/08/2022,Exp - Purchase Of Goods/Services - Incentive Payments,Census & Soc Methodology Dd,Sodexo Motivation Solutions U.K. ltd,237294,39.48,Survey Response Incentive Vouchers,Large,Programme Expenditure
UK Statistics Family,Office for National Statistics,12/08/2022,Exp - Purchase Of Goods/Services - Incentive Payments,Survey Management,Sodexo Motivation Solutions U.K. ltd,237294,"10,250.73",Survey Response Incentive Vouchers,Large,Programme Expenditure
UK Statistics Family,Office for National Statistics,12/08/2022,Rent Payable,Property Newport,Government Property Agency (GPA),237296,"394,145.00",Rental Charges,Large,Programme Expenditure
UK Statistics Family,Office for National Statistics,12/08/2022,Rent Payable,Property Titchfield,Government Property Agency (GPA),237296,"357,840.00",Rental Charges,Large,Programme Expenditure
UK Statistics Family,Office for National Statistics,12/08/2022,Surveys,Prices Division,ATOC Limited (Rail Delivery Group) ,237297,"27,606.00",Statistical Services,Large,Programme Expenditure
UK Statistics Family,Office for National Statistics,12/08/2022,Marketing & Media,Divisional Management,Access Intelligence PLC,237302,"115,440.00",Software Licenses,Large,Programme Expenditure
UK Statistics Family,Office for National Statistics,15/08/2022,PPE - NON-PROPERTY (LEASED NON-PFI) - COST - ADDITIONS (AS LESSEE),IT Operations,Crown Hosting Data Centres Limited,237398,"66,423.67",Information Management Services,SME,Programme Expenditure
UK Statistics Family,Office for National Statistics,15/08/2022,Hosting,IT Operations,Crown Hosting Data Centres Limited,237398,"24,800.72",Information Management Services,SME,Programme Expenditure
UK Statistics Family,Office for National Statistics,15/08/2022,Exp - Purchase Of Goods/Services - IT Contractual Services,Digital Publishing,Swirrl It Ltd,237399,"70,596.00",Information Management Services,SME,Programme Expenditure
UK Statistics Family,Office for National Statistics,15/08/2022,Exp - Short-Term Contract & Agency Staff - Full Cost,Business Change Support,Concept Information Technology Ltd T/A Concept Resourcing,237400,"4,675.10",Information Management Services,Large,Programme Expenditure
UK Statistics Family,Office for National Statistics,15/08/2022,Exp - Short-Term Contract & Agency Staff - Full Cost,Business Change Support,Concept Information Technology Ltd T/A Concept Resourcing,237400,"5,148.18",Information Management Services,Large,Programme Expenditure
UK Statistics Family,Office for National Statistics,15/08/2022,Exp - Short-Term Contract & Agency Staff - Full Cost,Productivity Research And Professional Development,Concept Information Technology Ltd T/A Concept Resourcing,237400,"4,015.58",Information Management Services,Large,Programme Expenditure
UK Statistics Family,Office for National Statistics,15/08/2022,Exp - Short-Term Contract & Agency Staff - Full Cost,Productivity Research And Professional Development,Concept Information Technology Ltd T/A Concept Resourcing,237400,"9,247.99",Information Management Services,Large,Programme Expenditure
UK Statistics Family,Office for National Statistics,15/08/2022,Exp - Short-Term Contract & Agency Staff - Full Cost,Data Science Campus,Concept Information Technology Ltd T/A Concept Resourcing,237400,"4,118.54",Information Management Services,Large,Programme Expenditure
UK Statistics Family,Office for National Statistics,15/08/2022,"ICT Outsourcing, Maintenance And Support",Covid Infection Survey,Equiniti Limited,237402,"17,993.87",Information Management Services,Large,Programme Expenditure
UK Statistics Family,Office for National Statistics,15/08/2022,"ICT Outsourcing, Maintenance And Support",Researcher Support And Data Access ,Equiniti Limited,237402,"160,551.36",Information Management Services,Large,Programme Expenditure
UK Statistics Family,Office for National Statistics,15/08/2022,Hosting,IT Operations,Equiniti Limited,237402,"51,041.75",Information Management Services,Large,Programme Expenditure
UK Statistics Family,Office for National Statistics,15/08/2022,Exp - Purchase Of Goods/Services - Contractors,CLOUD ARCHITECTURE,Certes Computing Ltd,237404,"8,802.32",Information Management Services,SME,Programme Expenditure
UK Statistics Family,Office for National Statistics,15/08/2022,Exp - Purchase Of Goods/Services - Contractors,Strategy And Architecture,Certes Computing Ltd,237404,"19,632.00",Information Management Services,SME,Programme Expenditure
UK Statistics Family,Office for National Statistics,15/08/2022,Exp - Purchase Of Goods/Services - Contractors,IT Applications,Certes Computing Ltd,237404,"15,118.49",Information Management Services,SME,Programme Expenditure
UK Statistics Family,Office for National Statistics,15/08/2022,Exp - Purchase Of Goods/Services - Contractors,Testing,La International,237405,"6,516.96",Information Management Services,SME,Programme Expenditure
UK Statistics Family,Office for National Statistics,15/08/2022,Exp - Purchase Of Goods/Services - Contractors,Consultancy Management,La International,237405,"3,681.18",Information Management Services,SME,Programme Expenditure
UK Statistics Family,Office for National Statistics,15/08/2022,Exp - Purchase Of Goods/Services - Contractors,Consultancy Management,La International,237405,"3,588.30",Information Management Services,SME,Programme Expenditure
UK Statistics Family,Office for National Statistics,15/08/2022,Exp - Purchase Of Goods/Services - Contractors,Digital Publishing,La International,237405,"10,780.20",Information Management Services,SME,Programme Expenditure
UK Statistics Family,Office for National Statistics,15/08/2022,Exp - Purchase Of Goods/Services - Contractors,STRATEGY SYNTHESIS AND CO-ORDINATION,La International,237405,"1,262.76",Information Management Services,SME,Programme Expenditure
UK Statistics Family,Office for National Statistics,15/08/2022,Exp - Purchase Of Goods/Services - Contractors,IT Applications,La International,237405,9194.75,Information Management Services,SME,Programme Expenditure
UK Statistics Family,Office for National Statistics,15/08/2022,Exp - Purchase Of Goods And Services Consultants,Productivity Research And Professional Development,Frontier Economics,237409,"36,600.00",Statistical Services,SME,Programme Expenditure
UK Statistics Family,Office for National Statistics,16/08/2022,Accommodation & Building Management,Property London,Westminster City Council,237688,"77,672.00",Non-domestic Rates,Large,Programme Expenditure
UK Statistics Family,Office for National Statistics,16/08/2022,End User Software And Hardware,Finance,Scc,237689,"32,555.55",Software Licenses,Large,Programme Expenditure
UK Statistics Family,Office for National Statistics,16/08/2022,Travel And Subsistence,Corporate Centre,Corporate Travel Management ,237691,"33,416.95",Travel and Accommodation,SME,Programme Expenditure
UK Statistics Family,Office for National Statistics,16/08/2022,Hospitality,Property Services,BaxterStorey,237697,"28,878.91",Catering Services,Large,Programme Expenditure
UK Statistics Family,Office for National Statistics,16/08/2022,Exp - Short-Term Contract & Agency Staff - Full Cost,Data Architecture,Malikshaw Interim & Executive,237699,"1,945.16",Information Management Services,SME,Programme Expenditure
UK Statistics Family,Office for National Statistics,16/08/2022,Exp - Purchase Of Goods/Services - Contractors,Tech Delivery Next Gen IT And Infrastructure,Malikshaw Interim & Executive,237699,"17,472.00",Information Management Services,SME,Programme Expenditure
UK Statistics Family,Office for National Statistics,16/08/2022,Exp - Purchase Of Goods/Services - Contractors,IT Operations,Malikshaw Interim & Executive,237699,"19,890.00",Information Management Services,SME,Programme Expenditure
UK Statistics Family,Office for National Statistics,16/08/2022,Exp - Purchase Of Goods/Services - IT Contractual Services,Strategy And Architecture,Chaucer Group Ltd,237707,"28,317.60",Information Management Services,SME,Programme Expenditure
UK Statistics Family,Office for National Statistics,17/08/2022,Exp - Short-Term Contract & Agency Staff - Full Cost,Covid Infection Survey,Concept Information Technology Ltd T/A Concept Resourcing,237717,"1,929.15",Information Management Services,Large,Programme Expenditure
UK Statistics Family,Office for National Statistics,17/08/2022,Exp - Short-Term Contract & Agency Staff - Full Cost,Covid Infection Survey,Concept Information Technology Ltd T/A Concept Resourcing,237717,"4,415.61",Information Management Services,Large,Programme Expenditure
UK Statistics Family,Office for National Statistics,17/08/2022,Exp - Short-Term Contract & Agency Staff - Full Cost,Business Change Support,Concept Information Technology Ltd T/A Concept Resourcing,237717,"3,088.91",Information Management Services,Large,Programme Expenditure
UK Statistics Family,Office for National Statistics,17/08/2022,Exp - Short-Term Contract & Agency Staff - Full Cost,Business Change Support,Concept Information Technology Ltd T/A Concept Resourcing,237717,69.72,Information Management Services,Large,Programme Expenditure
UK Statistics Family,Office for National Statistics,17/08/2022,Exp - Short-Term Contract & Agency Staff - Full Cost,Business Change Support,Concept Information Technology Ltd T/A Concept Resourcing,237717,"3,761.58",Information Management Services,Large,Programme Expenditure
UK Statistics Family,Office for National Statistics,17/08/2022,Exp - Short-Term Contract & Agency Staff - Full Cost,Business Change Support,Concept Information Technology Ltd T/A Concept Resourcing,237717,"6,272.83",Information Management Services,Large,Programme Expenditure
UK Statistics Family,Office for National Statistics,17/08/2022,Exp - Short-Term Contract & Agency Staff - Full Cost,Public Sector And Households,Concept Information Technology Ltd T/A Concept Resourcing,237717,"5,837.18",Information Management Services,Large,Programme Expenditure
UK Statistics Family,Office for National Statistics,17/08/2022,Exp - Short-Term Contract & Agency Staff - Full Cost,Public Sector And Households,Concept Information Technology Ltd T/A Concept Resourcing,237717,507.96,Information Management Services,Large,Programme Expenditure
UK Statistics Family,Office for National Statistics,17/08/2022,Exp - Purchase Of Goods/Services - IT Contractual Services,IT Applications,Diegesis Limited,237722,"199,950.00",Information Management Services,Large,Programme Expenditure
UK Statistics Family,Office for National Statistics,17/08/2022,Exp - Short-Term Contract & Agency Staff - Full Cost,Business Change Support,Talent International,237727,"24,000.00",Information Management Services,SME,Programme Expenditure
UK Statistics Family,Office for National Statistics,17/08/2022,Exp - Short-Term Contract & Agency Staff - Full Cost,Business Architecture Transformation And Statistical Strategy,Talent International,237727,"6,249.74",Information Management Services,SME,Programme Expenditure
UK Statistics Family,Office for National Statistics,17/08/2022,Exp - Purchase Of Goods/Services - Contractors,Data Architecture,Talent International,237727,"7,190.40",Information Management Services,SME,Programme Expenditure
UK Statistics Family,Office for National Statistics,17/08/2022,Exp - Purchase Of Goods/Services - Contractors,IT Operations,Talent International,237727,"3,000.00",Information Management Services,SME,Programme Expenditure
UK Statistics Family,Office for National Statistics,18/08/2022,Other Goods And Services,Strategy And Organisational Effectiveness,Vinci Construction UK Limited,237818,623.77,Facilities Mangement Services,Large,Programme Expenditure
UK Statistics Family,Office for National Statistics,18/08/2022,FM Contract Payments,Vinci Payments,Vinci Construction UK Limited,237818,"43,503.69",Facilities Mangement Services,Large,Programme Expenditure
UK Statistics Family,Office for National Statistics,18/08/2022,Exp - Purchase Of Goods/Services - IT Contractual Services,Security Operations,Scc,237819,"30,900.00",Software Licenses,Large,Programme Expenditure
UK Statistics Family,Office for National Statistics,18/08/2022,Exp - Purchase Of Goods/Services - IT Contractual Services,Tech Delivery Next Gen IT And Infrastructure,Insight Direct,237834,"25,392.00",Information Management Services,Large,Programme Expenditure
UK Statistics Family,Office for National Statistics,18/08/2022,Exp - Purchase Of Goods/Services - Contractors,Business Architecture,Talent International,237835,"16,800.00",Information Management Services,SME,Programme Expenditure
UK Statistics Family,Office for National Statistics,18/08/2022,Exp - Purchase Of Goods/Services - Contractors,IT Operations,Talent International,237835,"18,720.00",Information Management Services,SME,Programme Expenditure
UK Statistics Family,Office for National Statistics,19/08/2022,Exp - Purchase Of Goods/Services - IT Contractual Services,Business Statistics Transformation,Scc,237913,"63,898.50",Software Licenses,Large,Programme Expenditure
UK Statistics Family,Office for National Statistics,19/08/2022,Exp - Purchase Of Goods/Services - IT Contractual Services,Business Statistics Transformation,Scc,237913,"49,815.00",Software Licenses,Large,Programme Expenditure
UK Statistics Family,Office for National Statistics,19/08/2022,IT (Owned) At Cost - Additions,IT Operations,Centerprise International Ltd,237917,"740,502.00",Computers and Peripherals,Large,Programme Expenditure
UK Statistics Family,Office for National Statistics,22/08/2022,EXP - PURCHASE OF GOODS/SERVICES -  NON IT CONTRACTUAL PAYMENTS,Census & Soc Methodology Dd,University of Southampton,238029,"49,823.00",Training and Educational Services,SME,Programme Expenditure
UK Statistics Family,Office for National Statistics,22/08/2022,Exp - Purchase Of Goods/Services - Contractors,Consultancy Management,La International,238032,"3,588.30",Information Management Services,SME,Programme Expenditure
UK Statistics Family,Office for National Statistics,22/08/2022,Exp - Purchase Of Goods/Services - Contractors,INTEGRATED DATA STRATEGY AND DELIVERY,La International,238032,"3,450.00",Information Management Services,SME,Programme Expenditure
UK Statistics Family,Office for National Statistics,22/08/2022,Exp - Purchase Of Goods/Services - Contractors,Data Architecture,La International,238032,"3,982.38",Information Management Services,SME,Programme Expenditure
UK Statistics Family,Office for National Statistics,22/08/2022,Exp - Purchase Of Goods/Services - Contractors,Tech Delivery Legacy Sp,La International,238032,"4,165.02",Information Management Services,SME,Programme Expenditure
UK Statistics Family,Office for National Statistics,22/08/2022,Exp - Purchase Of Goods/Services - Contractors,IT Operations,La International,238032,"12,393.54",Information Management Services,SME,Programme Expenditure
UK Statistics Family,Office for National Statistics,22/08/2022,Exp - Purchase Of Goods/Services - Incentive Payments,Covid Infection Survey,Sodexo Motivation Solutions U.K. ltd,238039,"67,394.88",Survey Response Incentive Vouchers,Large,Programme Expenditure
UK Statistics Family,Office for National Statistics,22/08/2022,Exp - Purchase Of Goods/Services - IT Contractual Services,Strategy And Architecture,Chaucer Group Ltd,238042,"26,369.04",Information Management Services,SME,Programme Expenditure
UK Statistics Family,Office for National Statistics,23/08/2022,Travel And Subsistence,Corporate Centre,Corporate Travel Management ,238218,"29,965.44",Travel and Accommodation,SME,Programme Expenditure
UK Statistics Family,Office for National Statistics,23/08/2022,Telecoms,IT Operations,Bt Global Services,238227,"29,217.85",Telecommunications,Large,Programme Expenditure
UK Statistics Family,Office for National Statistics,24/08/2022,Rent Payable,Property Newport,Government Property Agency (GPA),238354,"394,145.00",Rental Charges,Large,Programme Expenditure
UK Statistics Family,Office for National Statistics,24/08/2022,Rent Payable,Property Christchurch,Government Property Agency (GPA),238354,"57,395.00",Rental Charges,Large,Programme Expenditure
UK Statistics Family,Office for National Statistics,24/08/2022,Rent Payable,PROPERTY LONDON 2MS,Government Property Agency (GPA),238354,"84,033.25",Rental Charges,Large,Programme Expenditure
UK Statistics Family,Office for National Statistics,24/08/2022,Business Rates,PROPERTY LONDON 2MS,Government Property Agency (GPA),238354,"154,390.75",Non-domestic Rates,Large,Programme Expenditure
UK Statistics Family,Office for National Statistics,24/08/2022,Exp - Purchase Of Goods/Services - Contractors,Testing,Parity Resources Limited,238355,"6,116.96",Information Management Services,Large,Programme Expenditure
UK Statistics Family,Office for National Statistics,24/08/2022,Exp - Purchase Of Goods/Services - Contractors,Programme Support,Parity Resources Limited,238355,"3,592.56",Information Management Services,Large,Programme Expenditure
UK Statistics Family,Office for National Statistics,24/08/2022,Exp - Purchase Of Goods/Services - Contractors,Analysis Microdata And Engagement,Parity Resources Limited,238355,480.60,Information Management Services,Large,Programme Expenditure
UK Statistics Family,Office for National Statistics,24/08/2022,Exp - Purchase Of Goods/Services - Contractors,Data Architecture,Parity Resources Limited,238355,"24,052.50",Information Management Services,Large,Programme Expenditure
UK Statistics Family,Office for National Statistics,24/08/2022,Exp - Purchase Of Goods/Services - Contractors,CLOUD ARCHITECTURE,Parity Resources Limited,238355,"3,600.00",Information Management Services,Large,Programme Expenditure
UK Statistics Family,Office for National Statistics,24/08/2022,Exp - Purchase Of Goods/Services - Contractors,CLOUD ARCHITECTURE,Parity Resources Limited,238355,"3,430.50",Information Management Services,Large,Programme Expenditure
UK Statistics Family,Office for National Statistics,24/08/2022,Exp - Purchase Of Goods/Services - Contractors,Tech Delivery Next Gen IT And Infrastructure,Parity Resources Limited,238355,"8,421.00",Information Management Services,Large,Programme Expenditure
UK Statistics Family,Office for National Statistics,24/08/2022,Exp - Purchase Of Goods/Services - Contractors,IT Operations,Parity Resources Limited,238355,"7,101.00",Information Management Services,Large,Programme Expenditure
UK Statistics Family,Office for National Statistics,24/08/2022,Exp - Purchase Of Goods/Services - Contractors,Beyond 2021 Research And Design,Methods Business & Digital Technology Ltd,238370,-450.00,Information Management Services,Large,Programme Expenditure
UK Statistics Family,Office for National Statistics,24/08/2022,Exp - Purchase Of Goods And Services Consultants,Digital Media,Methods Business & Digital Technology Ltd,238370,"1,348,294.50",Information Management Services,Large,Programme Expenditure
UK Statistics Family,Office for National Statistics,24/08/2022,Exp - Purchase Of Goods And Services Consultants,Publishing Operations,Methods Business & Digital Technology Ltd,238370,"73,249.52",Information Management Services,Large,Programme Expenditure
UK Statistics Family,Office for National Statistics,24/08/2022,Exp - Purchase Of Goods/Services - Incentive Payments,Survey Management,Sodexo Motivation Solutions U.K. ltd,238371,148.05,Survey Response Incentive Vouchers,Large,Programme Expenditure
UK Statistics Family,Office for National Statistics,24/08/2022,Exp - Purchase Of Goods/Services - Incentive Payments,Survey Management,Sodexo Motivation Solutions U.K. ltd,238371,"1,209.00",Survey Response Incentive Vouchers,Large,Programme Expenditure
UK Statistics Family,Office for National Statistics,24/08/2022,Exp - Purchase Of Goods/Services - Incentive Payments,Survey Management,Sodexo Motivation Solutions U.K. ltd,238371,"27,435.34",Survey Response Incentive Vouchers,Large,Programme Expenditure
UK Statistics Family,Office for National Statistics,24/08/2022,Exp - Purchase Of Goods/Services - Incentive Payments,Survey Management,Sodexo Motivation Solutions U.K. ltd,238371,"3,432.73",Survey Response Incentive Vouchers,Large,Programme Expenditure
UK Statistics Family,Office for National Statistics,24/08/2022,Exp - Purchase Of Goods/Services - Incentive Payments,Survey Management,Sodexo Motivation Solutions U.K. ltd,238371,"5,009.35",Survey Response Incentive Vouchers,Large,Programme Expenditure
UK Statistics Family,Office for National Statistics,24/08/2022,Exp - Purchase Of Goods/Services - Incentive Payments,Survey Management,Sodexo Motivation Solutions U.K. ltd,238371,"3,195.72",Survey Response Incentive Vouchers,Large,Programme Expenditure
UK Statistics Family,Office for National Statistics,24/08/2022,Exp - Purchase Of Goods/Services - Incentive Payments,Strategy And Engagement,Sodexo Motivation Solutions U.K. ltd,238371,138.18,Survey Response Incentive Vouchers,Large,Programme Expenditure
UK Statistics Family,Office for National Statistics,24/08/2022,Exp - Purchase Of Goods/Services - Incentive Payments,Best Practice And Impact,Sodexo Motivation Solutions U.K. ltd,238371,49.34,Survey Response Incentive Vouchers,Large,Programme Expenditure
UK Statistics Family,Office for National Statistics,24/08/2022,Exp - Purchase Of Goods/Services - Incentive Payments,Survey Management,Sodexo Motivation Solutions U.K. ltd,238371,"9,382.69",Survey Response Incentive Vouchers,Large,Programme Expenditure
UK Statistics Family,Office for National Statistics,25/08/2022,Exp - Purchase Of Goods/Services - Other ICT Costs Software,Finance,Scc,238450,"154,286.88",Software Licenses,Large,Programme Expenditure
UK Statistics Family,Office for National Statistics,25/08/2022,Exp - Purchase Of Goods/Services - IT Contractual Services,Digital Publishing,University of Durham,238451,"218,870.40",Statistical Services,Large,Programme Expenditure
UK Statistics Family,Office for National Statistics,25/08/2022,Postage,REPROGRAPHICS,Pitney Bowes Ltd,238452,"121,918.38",Postage Services,Large,Programme Expenditure
UK Statistics Family,Office for National Statistics,25/08/2022,Exp - Purchase Of Goods And Services Consultants,Digital Media,Methods Business & Digital Technology Ltd,238456,"125,250.00",Information Management Services,Large,Programme Expenditure
UK Statistics Family,Office for National Statistics,25/08/2022,Exp - Purchase Of Goods/Services - Incentive Payments,Social Survey Transformation Newport,Sodexo Motivation Solutions U.K. ltd,238457,73.99,Survey Response Incentive Vouchers,Large,Programme Expenditure
UK Statistics Family,Office for National Statistics,25/08/2022,Exp - Purchase Of Goods/Services - Incentive Payments,Survey Management,Sodexo Motivation Solutions U.K. ltd,238457,"24,850.15",Survey Response Incentive Vouchers,Large,Programme Expenditure
UK Statistics Family,Office for National Statistics,25/08/2022,Exp - Purchase Of Goods/Services - Incentive Payments,Survey Management,Sodexo Motivation Solutions U.K. ltd,238457,"1,223.72",Survey Response Incentive Vouchers,Large,Programme Expenditure
UK Statistics Family,Office for National Statistics,25/08/2022,Exp - Purchase Of Goods/Services - Incentive Payments,Survey Management,Sodexo Motivation Solutions U.K. ltd,238457,1105.34,Survey Response Incentive Vouchers,Large,Programme Expenditure
UK Statistics Family,Office for National Statistics,25/08/2022,Exp - Purchase Of Goods/Services - Incentive Payments,Survey Management,Sodexo Motivation Solutions U.K. ltd,238457,720.45,Survey Response Incentive Vouchers,Large,Programme Expenditure
UK Statistics Family,Office for National Statistics,25/08/2022,Rent Payable,Property Titchfield,Government Property Agency (GPA),238458,"339,263.80",Rental Charges,Large,Programme Expenditure
UK Statistics Family,Office for National Statistics,25/08/2022,Rent Payable,PROPERTY LONDON 2MS,Government Property Agency (GPA),238458,"224,748.25",Rental Charges,Large,Programme Expenditure
UK Statistics Family,Office for National Statistics,25/08/2022,Business Rates,PROPERTY LONDON 2MS,Government Property Agency (GPA),238458,"13,675.75",Non-domestic Rates,Large,Programme Expenditure
UK Statistics Family,Office for National Statistics,25/08/2022,Postage,Interviewer Support,Banner Group Ltd,238459,"34,000.00",Stationery,SME,Programme Expenditure
UK Statistics Family,Office for National Statistics,26/08/2022,FM Contract Payments,Property London,Tandem Property Asset Management LLP,238564,"55,008.00",Rental Charges,Large,Programme Expenditure
UK Statistics Family,Office for National Statistics,26/08/2022,Exp - Purchase Of Goods/Services - Incentive Payments,Social Surveys Division,Natcen Social Research,238565,"30,294.60",Statistical Services,Large,Programme Expenditure
UK Statistics Family,Office for National Statistics,26/08/2022,Exp - Purchase Of Goods/Services - Contractors,Testing,La International,238574,"3,184.94",Information Management Services,SME,Programme Expenditure
UK Statistics Family,Office for National Statistics,26/08/2022,Exp - Purchase Of Goods/Services - Contractors,Consultancy Management,La International,238574,"2,944.94",Information Management Services,SME,Programme Expenditure
UK Statistics Family,Office for National Statistics,26/08/2022,Exp - Purchase Of Goods/Services - Contractors,Consultancy Management,La International,238574,"1,435.32",Information Management Services,SME,Programme Expenditure
UK Statistics Family,Office for National Statistics,26/08/2022,Exp - Purchase Of Goods/Services - Contractors,Data Architecture,La International,238574,"12,094.74",Information Management Services,SME,Programme Expenditure
UK Statistics Family,Office for National Statistics,26/08/2022,Exp - Purchase Of Goods/Services - Contractors,Data Architecture,La International,238574,"4,281.18",Information Management Services,SME,Programme Expenditure
UK Statistics Family,Office for National Statistics,26/08/2022,Exp - Purchase Of Goods/Services - Contractors,Tech Delivery Legacy Sp,La International,238574,"8,330.04",Information Management Services,SME,Programme Expenditure
UK Statistics Family,Office for National Statistics,26/08/2022,Exp - Purchase Of Goods/Services - Contractors,IT Applications,La International,238574,"3,664.94",Information Management Services,SME,Programme Expenditure
UK Statistics Family,Office for National Statistics,26/08/2022,Exp - Purchase Of Goods/Services - Incentive Payments,Survey Management,Sodexo Motivation Solutions U.K. ltd,238579,543.90,Survey Response Incentive Vouchers,Large,Programme Expenditure
UK Statistics Family,Office for National Statistics,26/08/2022,Exp - Purchase Of Goods/Services - Incentive Payments,Survey Management,Sodexo Motivation Solutions U.K. ltd,238579,19.74,Survey Response Incentive Vouchers,Large,Programme Expenditure
UK Statistics Family,Office for National Statistics,26/08/2022,Exp - Purchase Of Goods/Services - Incentive Payments,Survey Management,Sodexo Motivation Solutions U.K. ltd,238579,683.70,Survey Response Incentive Vouchers,Large,Programme Expenditure
UK Statistics Family,Office for National Statistics,26/08/2022,Exp - Purchase Of Goods/Services - Incentive Payments,Survey Management,Sodexo Motivation Solutions U.K. ltd,238579,"1,333.50",Survey Response Incentive Vouchers,Large,Programme Expenditure
UK Statistics Family,Office for National Statistics,26/08/2022,Exp - Purchase Of Goods/Services - Incentive Payments,Covid Infection Survey,Sodexo Motivation Solutions U.K. ltd,238579,"164,941.14",Survey Response Incentive Vouchers,Large,Programme Expenditure
UK Statistics Family,Office for National Statistics,26/08/2022,Exp - Purchase Of Goods/Services - Contractors,Digital Publishing,LA FOSSE ASSOCIATES LIMITED,238580,"11,040.00",Information Management Services,Large,Programme Expenditure
UK Statistics Family,Office for National Statistics,26/08/2022,Exp - Purchase Of Goods/Services - Contractors,Data Architecture,LA FOSSE ASSOCIATES LIMITED,238580,"16,200.00",Information Management Services,Large,Programme Expenditure
UK Statistics Family,Office for National Statistics,26/08/2022,Surveys,Social Survey Transformation Newport,REad Group,238581,"29,343.13",Data Acquisition,Large,Programme Expenditure
UK Statistics Family,Office for National Statistics,26/08/2022,Rent Payable,Property London,Tandem Property Asset Management LLP,238582,"243,432.00",Rental Charges,Large,Programme Expenditure
UK Statistics Family,Office for National Statistics,26/08/2022,Postage,Interviewer Support,Banner Group Ltd,238583,"34,000.00",Stationery,SME,Programme Expenditure
UK Statistics Family,Office for National Statistics,26/08/2022,Exp - Purchase Of Goods/Services - Contractors,Digital Publishing,Talent International,238587,"18,763.15",Information Management Services,SME,Programme Expenditure
UK Statistics Family,Office for National Statistics,26/08/2022,Exp - Short-Term Contract & Agency Staff - Full Cost,Business Change Support,Talent International,238587,"3,242.09",Information Management Services,SME,Programme Expenditure
UK Statistics Family,Office for National Statistics,26/08/2022,Exp - Short-Term Contract & Agency Staff - Full Cost,SOCIAL SURVEY DATA PROCESSING,Talent International,238587,"3,965.76",Information Management Services,SME,Programme Expenditure
UK Statistics Family,Office for National Statistics,04/08/2022,Exp - Purchase Of Goods/Services - Incentive Payments,Covid Infection Survey,Sodexo Motivation Solutions U.K. ltd,30003687,"1,111,614.56",Survey Response Incentive Vouchers,Large,Programme Expenditure
UK Statistics Family,Office for National Statistics,10/08/2022,Stationery,Lodgecard,Royal Bank of Scotland,30003693,"1,290.15",Multiple Procurement Card Purchases  - Stationery ,Large,Programme Expenditure
UK Statistics Family,Office for National Statistics,10/08/2022,Other Goods And Services,GPC,Royal Bank of Scotland,30003693,"60,411.26",Multiple Procurement Card Purchases - other goods/services  ,Large,Programme Expenditure
UK Statistics Family,Office for National Statistics,10/08/2022,Travel And Subsistence,Car Hire,Royal Bank of Scotland,30003693,29732.3,Multiple Procurement Card Purchases - Vehicle Hire  ,Large,Programme Expenditure
UK Statistics Family,Office for National Statistics,12/08/2022,Exp - Purchase Of Goods/Services - Incentive Payments,Covid Infection Survey,Sodexo Motivation Solutions U.K. ltd,30003701,971742.18,Survey Response Incentive Vouchers,Large,Programme Expenditure
UK Statistics Family,Office for National Statistics,12/08/2022,Surveys,Covid Infection Survey,IQVIA Limited,30003703,"11,180,137.60",Statistical Services,Large,Programme Expenditure
UK Statistics Family,Office for National Statistics,12/08/2022,Surveys,Covid Infection Survey,IQVIA Limited,30003703,"3,131,381.65",Statistical Services,Large,Programme Expenditure
UK Statistics Family,Office for National Statistics,16/08/2022,Electricity,Property Services,Edf Energy,30003704,"32,131.80",Utility Charges,Large,Programme Expenditure
UK Statistics Family,Office for National Statistics,19/08/2022,Exp - Purchase Of Goods/Services - Incentive Payments,Covid Infection Survey,Sodexo Motivation Solutions U.K. ltd,30003711,"904,380.31",Survey Response Incentive Vouchers,Large,Programme Expenditure
UK Statistics Family,Office for National Statistics,26/08/2022,Exp - Purchase Of Goods/Services - Incentive Payments,Covid Infection Survey,Sodexo Motivation Solutions U.K. ltd,30003722,"968,026.60",Survey Response Incentive Vouchers,Large,Programme Expenditure
UK Statistics Family,Office for National Statistics,30/08/2022,End User Software And Hardware,IT Operations,Insight Direct,30003724,"50,896.80",Computers and Peripherals,Large,Programme Expenditure
UK Statistics Family,Office for National Statistics,30/08/2022,Non IT Maintenance And Hire,REPROGRAPHICS,Canon UK Ltd,30003725,"57,165.88",Equipment Maintenance and Support,Large,Programme Expenditure
UK Statistics Family,Office for National Statistics,30/08/2022,"ICT Outsourcing, Maintenance And Support",Digital Publishing,PA CONSULTING SERVICES LIMITED,30003726,"108,000.00",Information Management Services,SME,Programme Expenditure
UK Statistics Family,Office for National Statistics,30/08/2022,Exp - Purchase Of Goods/Services - Other ICT Costs Software,Finance,Scc,30003727,"114,951.16",Software Licenses,Large,Programme Expenditure
UK Statistics Family,Office for National Statistics,30/08/2022,Surveys,Covid Infection Survey,IQVIA Limited,30003728,"6,113,367.06",Statistical Services,Large,Programme Expenditure
UK Statistics Family,Office for National Statistics,31/08/2022,Exp - Purchase Of Goods/Services - Incentive Payments,Covid Infection Survey,Sodexo Motivation Solutions U.K. ltd,30003730,"1,034,422.13",Survey Response Incentive Vouchers,Large,Programme Expenditure
UK Statistics Family,Office for National Statistics,31/08/2022,Exp - Purchase Of Goods/Services - Incentive Payments,Interviewer Support,Sodexo Motivation Solutions U.K. ltd,30003731,"33,875.30",Survey Response Incentive Vouchers,Large,Programme Expenditure
UK Statistics Family,Office for National Statistics,31/08/2022,"ICT Outsourcing, Maintenance And Support",Digital Publishing,PA CONSULTING SERVICES LIMITED,30003732,"60,000.00",Information Management Services,SME,Programme Expenditure
UK Statistics Family,Office for National Statistics,31/08/2022,Surveys,Prices Division,Kantar Public UK Ltd.,30003733,"218,353.80",Statistical Services,SME,Programme Expenditure
UK Statistics Family,Office for National Statistics,31/08/2022,Rent Payable,Property Newport,Government Property Agency (GPA),30003734,395566,Rental Charges,Large,Programme Expenditure
UK Statistics Family,Office for National Statistics,31/08/2022,Travel And Subsistence,Corporate Centre,Corporate Travel Management ,30003735,36498.64,Travel and Accommodation,SME,Programme Expenditure
,,,,,,,"41,806,056.15",,,
